[Event "*** Titled Tuesday Blitz"]
[Site "Chess.com"]
[Date "2020.11.24"]
[Round "8"]
[White "anon481216"]
[Black "zverr1"]
[Result "0-1"]
[WhiteElo "2399"]
[BlackElo "2520"]
[TimeControl "180+1"]
[EndTime "11:44:20 PST"]
[Termination "zverr1 won by resignation"]

1. d4 {[%clk 0:03:00.9]} 1... Nf6 {[%clk 0:02:59.9]} 2. c4 {[%clk 0:03:00.8]}
2... g6 {[%clk 0:02:59.3]} 3. Nc3 {[%clk 0:03:00.5]} 3... Bg7 {[%clk 0:02:59.9]}
4. e4 {[%clk 0:03:00.2]} 4... d6 {[%clk 0:03:00.5]} 5. Be2 {[%clk 0:03:00.7]}
5... O-O {[%clk 0:03:00.7]} 6. Bg5 {[%clk 0:03:01]} 6... c5 {[%clk 0:02:59.5]}
7. d5 {[%clk 0:02:59.6]} 7... h6 {[%clk 0:03:00]} 8. Bf4 {[%clk 0:02:40.7]} 8...
e6 {[%clk 0:02:59.8]} 9. dxe6 {[%clk 0:02:29.9]} 9... Bxe6 {[%clk 0:03:00.7]}
10. Qd2 {[%clk 0:02:26]} 10... Qa5 {[%clk 0:02:49.5]} 11. Bxd6 {[%clk
0:02:17.4]} 11... Rd8 {[%clk 0:02:47.4]} 12. Nf3 {[%clk 0:02:10.3]} 12... Ne8
{[%clk 0:02:38.3]} 13. e5 {[%clk 0:02:09.6]} 13... Nc6 {[%clk 0:02:38.8]} 14.
Ne4 {[%clk 0:01:55.3]} 14... Qxd2+ {[%clk 0:02:30.6]} 15. Nfxd2 {[%clk
0:01:44.5]} 15... Nxe5 {[%clk 0:02:25.2]} 16. Bxc5 {[%clk 0:01:35.8]} 16... Nd3+
{[%clk 0:02:25.1]} 17. Bxd3 {[%clk 0:01:35]} 17... Rxd3 {[%clk 0:02:26]} 18. Ba3
{[%clk 0:01:24.7]} 18... Rxa3 {[%clk 0:02:24.9]} 19. bxa3 {[%clk 0:01:20.8]}
19... Bxa1 {[%clk 0:02:25.8]} 20. Ke2 {[%clk 0:01:15.5]} 20... Bg7 {[%clk
0:02:25.1]} 21. Rb1 {[%clk 0:01:11.6]} 21... b6 {[%clk 0:02:18.5]} 22. a4 {[%clk
0:01:11.4]} 22... Rc8 {[%clk 0:02:09.5]} 23. a5 {[%clk 0:01:08.7]} 23... Bxc4+
{[%clk 0:02:08.2]} 24. Nxc4 {[%clk 0:01:08.5]} 24... Rxc4 {[%clk 0:02:09.1]} 25.
f3 {[%clk 0:01:08.4]} 25... Rc2+ {[%clk 0:02:05.1]} 26. Kd3 {[%clk 0:01:06.6]}
26... Rxa2 {[%clk 0:02:04.3]} 27. axb6 {[%clk 0:01:06.8]} 27... axb6 {[%clk
0:02:03.8]} 28. Rxb6 {[%clk 0:01:06.8]} 28... Nc7 {[%clk 0:01:45.5]} 29. Rb8+
{[%clk 0:01:03.3]} 29... Kh7 {[%clk 0:01:45.4]} 30. Rb7 {[%clk 0:01:03.5]} 30...
Be5 {[%clk 0:01:27.2]} 31. g3 {[%clk 0:01:00.3]} 31... g5 {[%clk 0:01:27.6]} 32.
h4 {[%clk 0:00:50.7]} 32... f5 {[%clk 0:01:27.2]} 33. Nf6+ {[%clk 0:00:43.4]}
33... Bxf6 {[%clk 0:01:25.8]} 34. Rxc7+ {[%clk 0:00:43.4]} 34... Kg6 {[%clk
0:01:26.7]} 35. hxg5 {[%clk 0:00:43]} 35... hxg5 {[%clk 0:01:27.6]} 36. g4
{[%clk 0:00:39.7]} 36... fxg4 {[%clk 0:01:22.2]} 37. fxg4 {[%clk 0:00:39.9]}
37... Ra4 {[%clk 0:01:22.5]} 0-1

[Event "*** Titled Tuesday Blitz"]
[Site "Chess.com"]
[Date "2020.11.24"]
[Round "8"]
[White "barriochess"]
[Black "igorknyazev"]
[Result "1-0"]
[WhiteElo "2369"]
[BlackElo "2077"]
[TimeControl "180+1"]
[EndTime "11:44:24 PST"]
[Termination "barriochess won by resignation"]

1. d4 {[%clk 0:03:00.9]} 1... Nf6 {[%clk 0:02:59]} 2. Bg5 {[%clk 0:03:00]} 2...
c5 {[%clk 0:02:58.4]} 3. d5 {[%clk 0:02:59.8]} 3... Ne4 {[%clk 0:02:51.5]} 4.
Bf4 {[%clk 0:02:59.4]} 4... Qa5+ {[%clk 0:02:49.8]} 5. c3 {[%clk 0:02:58.9]}
5... d6 {[%clk 0:02:45.8]} 6. f3 {[%clk 0:02:54.5]} 6... Nf6 {[%clk 0:02:45.2]}
7. e4 {[%clk 0:02:54.5]} 7... g6 {[%clk 0:02:45]} 8. Na3 {[%clk 0:02:52.4]} 8...
Bg7 {[%clk 0:02:44.9]} 9. Qd2 {[%clk 0:02:52]} 9... O-O {[%clk 0:02:43.8]} 10.
Nc4 {[%clk 0:02:50.9]} 10... Qc7 {[%clk 0:02:42.2]} 11. a4 {[%clk 0:02:49.6]}
11... Nbd7 {[%clk 0:02:40.5]} 12. a5 {[%clk 0:02:45.2]} 12... Nh5 {[%clk
0:02:26.5]} 13. Be3 {[%clk 0:02:44]} 13... Ne5 {[%clk 0:02:26.8]} 14. Nxe5
{[%clk 0:02:33.1]} 14... Bxe5 {[%clk 0:02:25.7]} 15. g4 {[%clk 0:02:31.3]} 15...
Nf6 {[%clk 0:01:52.5]} 16. Bg2 {[%clk 0:02:26.9]} 16... Nd7 {[%clk 0:01:44]} 17.
f4 {[%clk 0:02:26.8]} 17... Bg7 {[%clk 0:01:42]} 18. Nf3 {[%clk 0:02:26.7]}
18... Nf6 {[%clk 0:01:28.5]} 19. g5 {[%clk 0:02:19]} 19... Nxe4 {[%clk
0:01:28.2]} 20. Qc2 {[%clk 0:02:15.9]} 20... Bf5 {[%clk 0:01:20.8]} 21. Nh4
{[%clk 0:02:15.4]} 21... Ng3 {[%clk 0:01:20.7]} 22. Nxf5 {[%clk 0:01:58.4]}
22... Nxf5 {[%clk 0:01:19.3]} 23. Bf2 {[%clk 0:01:58.8]} 23... b5 {[%clk
0:01:17.2]} 24. axb6 {[%clk 0:01:56.9]} 24... axb6 {[%clk 0:01:17]} 25. O-O
{[%clk 0:01:57.8]} 25... b5 {[%clk 0:01:13.5]} 26. Be4 {[%clk 0:01:57.5]} 26...
Qd7 {[%clk 0:01:08.5]} 27. Kg2 {[%clk 0:01:55.7]} 27... f6 {[%clk 0:00:54.8]}
28. h4 {[%clk 0:01:49.3]} 28... e5 {[%clk 0:00:49]} 29. dxe6 {[%clk 0:01:48]}
29... Qxe6 {[%clk 0:00:44.7]} 30. Rxa8 {[%clk 0:01:45.8]} 30... Rxa8 {[%clk
0:00:40.5]} 31. Bxa8 {[%clk 0:01:45.1]} 31... Ne3+ {[%clk 0:00:40.4]} 32. Bxe3
{[%clk 0:01:44]} 32... Qg4+ {[%clk 0:00:36.6]} 33. Kf2 {[%clk 0:01:44.1]} 33...
Qxh4+ {[%clk 0:00:35.6]} 34. Ke2 {[%clk 0:01:44.2]} 34... fxg5 {[%clk
0:00:28.1]} 35. Bd5+ {[%clk 0:01:43.3]} 35... Kh8 {[%clk 0:00:27.5]} 36. fxg5
{[%clk 0:01:42]} 36... Qh2+ {[%clk 0:00:19.9]} 37. Rf2 {[%clk 0:01:40.8]} 37...
Qe5 {[%clk 0:00:19.9]} 38. Qe4 {[%clk 0:01:40.4]} 38... b4 {[%clk 0:00:17.9]}
39. Qxe5 {[%clk 0:01:40.4]} 1-0

[Event "*** Titled Tuesday Blitz"]
[Site "Chess.com"]
[Date "2020.11.24"]
[Round "8"]
[White "The_Machine04"]
[Black "Witik"]
[Result "0-1"]
[WhiteElo "2501"]
[BlackElo "2688"]
[TimeControl "180+1"]
[EndTime "11:44:26 PST"]
[Termination "Witik won by resignation"]

1. d4 {[%clk 0:03:00.9]} 1... d6 {[%clk 0:02:58.6]} 2. Nf3 {[%clk 0:02:58]} 2...
c6 {[%clk 0:02:58.6]} 3. e4 {[%clk 0:02:57]} 3... Nd7 {[%clk 0:02:56.8]} 4. Nbd2
{[%clk 0:02:56.5]} 4... h6 {[%clk 0:02:56.7]} 5. Bc4 {[%clk 0:02:55.4]} 5... g5
{[%clk 0:02:55.4]} 6. c3 {[%clk 0:02:46]} 6... Bg7 {[%clk 0:02:54.2]} 7. Qe2
{[%clk 0:02:44.8]} 7... Nf8 {[%clk 0:02:47.1]} 8. Nf1 {[%clk 0:02:43.9]} 8...
Ng6 {[%clk 0:02:46.5]} 9. Ng3 {[%clk 0:02:42.9]} 9... g4 {[%clk 0:02:37.6]} 10.
Ng1 {[%clk 0:02:27.6]} 10... h5 {[%clk 0:02:20.4]} 11. Nf5 {[%clk 0:02:22.9]}
11... Bxf5 {[%clk 0:02:18.8]} 12. exf5 {[%clk 0:02:23.8]} 12... Nh4 {[%clk
0:02:18]} 13. Bxf7+ {[%clk 0:01:56.2]} 13... Kxf7 {[%clk 0:02:16.4]} 14. Qe6+
{[%clk 0:01:57.1]} 14... Kf8 {[%clk 0:02:15.2]} 15. Bg5 {[%clk 0:01:57.6]} 15...
Bf6 {[%clk 0:02:06.1]} 16. Bd2 {[%clk 0:00:54.4]} 16... Nxg2+ {[%clk 0:02:01.2]}
17. Kf1 {[%clk 0:00:52.5]} 17... Nh4 {[%clk 0:02:00.8]} 18. Ne2 {[%clk
0:00:51.3]} 18... Nf3 {[%clk 0:01:59]} 19. Nf4 {[%clk 0:00:24.6]} 19... Nxd2+
{[%clk 0:01:55.3]} 20. Ke2 {[%clk 0:00:24.8]} 20... Nf3 {[%clk 0:01:53.1]} 21.
Ng6+ {[%clk 0:00:24.3]} 21... Kg7 {[%clk 0:01:53.3]} 22. h3 {[%clk 0:00:22.1]}
22... Ng5 {[%clk 0:01:46.2]} 23. Qe3 {[%clk 0:00:21.4]} 23... Nh6 {[%clk
0:01:30.1]} 24. Rag1 {[%clk 0:00:16.7]} 24... Nxf5 {[%clk 0:01:26.6]} 25. Qd3
{[%clk 0:00:14.8]} 25... Kxg6 {[%clk 0:01:26.3]} 26. hxg4 {[%clk 0:00:14.8]}
26... hxg4 {[%clk 0:01:24.5]} 27. Rxh8 {[%clk 0:00:15.5]} 27... Qxh8 {[%clk
0:01:23.9]} 28. Rxg4 {[%clk 0:00:16.4]} 28... Qh5 {[%clk 0:01:21.4]} 0-1

[Event "*** Titled Tuesday Blitz"]
[Site "Chess.com"]
[Date "2020.11.24"]
[Round "8"]
[White "ajedrezhoy"]
[Black "mortngabriel"]
[Result "0-1"]
[WhiteElo "2220"]
[BlackElo "2355"]
[TimeControl "180+1"]
[EndTime "11:44:37 PST"]
[Termination "mortngabriel won by resignation"]

1. e4 {[%clk 0:03:00.9]} 1... c5 {[%clk 0:02:32.1]} 2. Nc3 {[%clk 0:02:58.8]}
2... a6 {[%clk 0:02:31.2]} 3. f4 {[%clk 0:02:56]} 3... b5 {[%clk 0:02:30.2]} 4.
Nf3 {[%clk 0:02:48.6]} 4... Bb7 {[%clk 0:02:26.7]} 5. d3 {[%clk 0:02:47.6]} 5...
e6 {[%clk 0:02:21.9]} 6. g3 {[%clk 0:02:38.8]} 6... d5 {[%clk 0:02:07.4]} 7. Bg2
{[%clk 0:02:36.6]} 7... b4 {[%clk 0:02:03.8]} 8. Nb1 {[%clk 0:02:26.3]} 8...
dxe4 {[%clk 0:02:02.6]} 9. Ng5 {[%clk 0:02:26]} 9... Nf6 {[%clk 0:01:59.5]} 10.
Nxe4 {[%clk 0:02:19]} 10... Nxe4 {[%clk 0:01:58.7]} 11. Bxe4 {[%clk 0:02:11.8]}
11... Bxe4 {[%clk 0:01:40.6]} 12. dxe4 {[%clk 0:02:11.5]} 12... Nc6 {[%clk
0:01:35.7]} 13. c3 {[%clk 0:02:10.8]} 13... bxc3 {[%clk 0:01:32.5]} 14. Qxd8+
{[%clk 0:02:05.9]} 14... Rxd8 {[%clk 0:01:31.7]} 15. bxc3 {[%clk 0:02:02.3]}
15... c4 {[%clk 0:01:00.7]} 16. Ke2 {[%clk 0:02:01.2]} 16... Bc5 {[%clk
0:00:54.5]} 17. Na3 {[%clk 0:01:53.5]} 17... Rd3 {[%clk 0:00:49.1]} 18. Nxc4
{[%clk 0:01:50.2]} 18... Rxc3 {[%clk 0:00:49]} 19. Nd2 {[%clk 0:01:15.5]} 19...
Nd4+ {[%clk 0:00:35.4]} 20. Kd1 {[%clk 0:01:14.9]} 20... O-O {[%clk 0:00:31.9]}
21. Bb2 {[%clk 0:01:14]} 21... Rd3 {[%clk 0:00:31]} 22. Rc1 {[%clk 0:01:07.1]}
22... Bb4 {[%clk 0:00:21]} 23. Bxd4 {[%clk 0:00:56.2]} 23... Rxd2+ {[%clk
0:00:19.9]} 0-1

[Event "*** Titled Tuesday Blitz"]
[Site "Chess.com"]
[Date "2020.11.24"]
[Round "8"]
[White "DoHoChess"]
[Black "RD4ever"]
[Result "0-1"]
[WhiteElo "2698"]
[BlackElo "2828"]
[TimeControl "180+1"]
[EndTime "11:44:42 PST"]
[Termination "RD4ever won by resignation"]

1. Nf3 {[%clk 0:03:00.9]} 1... Nf6 {[%clk 0:02:58.9]} 2. c4 {[%clk 0:02:59.1]}
2... c5 {[%clk 0:02:59]} 3. Nc3 {[%clk 0:02:59.2]} 3... e6 {[%clk 0:02:59]} 4.
g3 {[%clk 0:02:59.2]} 4... b6 {[%clk 0:02:59.6]} 5. Bg2 {[%clk 0:02:59.4]} 5...
Bb7 {[%clk 0:03:00.5]} 6. O-O {[%clk 0:03:00]} 6... Be7 {[%clk 0:03:01.4]} 7.
Re1 {[%clk 0:03:00.4]} 7... d6 {[%clk 0:02:58.4]} 8. e4 {[%clk 0:03:00.6]} 8...
Nbd7 {[%clk 0:02:57.8]} 9. d4 {[%clk 0:03:00.6]} 9... cxd4 {[%clk 0:02:57.8]}
10. Nxd4 {[%clk 0:03:01.5]} 10... Qc7 {[%clk 0:02:58.6]} 11. Ndb5 {[%clk
0:02:57.1]} 11... Qb8 {[%clk 0:02:57]} 12. Nd5 {[%clk 0:02:34.5]} 12... exd5
{[%clk 0:02:48.7]} 13. exd5 {[%clk 0:02:35.4]} 13... Ne5 {[%clk 0:02:34.5]} 14.
f4 {[%clk 0:02:24.2]} 14... Ng6 {[%clk 0:02:29.8]} 15. f5 {[%clk 0:02:13.4]}
15... Ne5 {[%clk 0:02:26.5]} 16. Bf4 {[%clk 0:01:25.6]} 16... Nfd7 {[%clk
0:02:24.5]} 17. Nd4 {[%clk 0:01:05]} 17... Qc7 {[%clk 0:02:08.5]} 18. Nc6 {[%clk
0:01:01]} 18... Bxc6 {[%clk 0:02:02.9]} 19. dxc6 {[%clk 0:01:00.6]} 19... Nf6
{[%clk 0:01:56]} 20. Bxe5 {[%clk 0:00:47.5]} 20... dxe5 {[%clk 0:01:55.3]} 21.
g4 {[%clk 0:00:48]} 21... h5 {[%clk 0:01:50]} 22. g5 {[%clk 0:00:47.2]} 22...
Bc5+ {[%clk 0:01:47.5]} 23. Kh1 {[%clk 0:00:41.5]} 23... Ng4 {[%clk 0:01:47.8]}
24. Qd7+ {[%clk 0:00:33.8]} 24... Qxd7 {[%clk 0:01:46.7]} 25. cxd7+ {[%clk
0:00:34.7]} 25... Kxd7 {[%clk 0:01:47.6]} 26. Bxa8 {[%clk 0:00:33.3]} 26... Rxa8
{[%clk 0:01:48.5]} 27. h3 {[%clk 0:00:31.4]} 27... Nf2+ {[%clk 0:01:44.7]} 28.
Kg2 {[%clk 0:00:31.5]} 28... Bd4 {[%clk 0:01:39.1]} 29. Kf3 {[%clk 0:00:20.7]}
29... Nxh3 {[%clk 0:01:36.6]} 30. Rad1 {[%clk 0:00:19.7]} 30... Nxg5+ {[%clk
0:01:36.3]} 31. Kg2 {[%clk 0:00:19]} 31... f6 {[%clk 0:01:36.1]} 32. Rh1 {[%clk
0:00:18.4]} 32... Rh8 {[%clk 0:01:35.4]} 33. b3 {[%clk 0:00:18.9]} 33... h4
{[%clk 0:01:34.6]} 34. Rd3 {[%clk 0:00:19.2]} 34... h3+ {[%clk 0:01:34.4]} 35.
Kg3 {[%clk 0:00:19.8]} 35... Kd6 {[%clk 0:01:33.8]} 36. Kg4 {[%clk 0:00:20.2]}
36... Kc5 {[%clk 0:01:32.9]} 37. a3 {[%clk 0:00:20]} 37... a5 {[%clk 0:01:32.7]}
38. Rb1 {[%clk 0:00:19.5]} 38... h2 {[%clk 0:01:30.2]} 39. Rh1 {[%clk
0:00:20.1]} 39... Ne4 {[%clk 0:01:30.2]} 40. Rh3 {[%clk 0:00:18.1]} 40... Nf2+
{[%clk 0:01:29.8]} 0-1

[Event "*** Titled Tuesday Blitz"]
[Site "Chess.com"]
[Date "2020.11.24"]
[Round "8"]
[White "pastouche06"]
[Black "eCztery"]
[Result "1-0"]
[WhiteElo "2519"]
[BlackElo "2346"]
[TimeControl "180+1"]
[EndTime "11:44:51 PST"]
[Termination "pastouche06 won by resignation"]

1. d4 {[%clk 0:03:00.2]} 1... Nf6 {[%clk 0:02:52.5]} 2. c4 {[%clk 0:02:57.8]}
2... e6 {[%clk 0:02:52.1]} 3. Nc3 {[%clk 0:02:57.4]} 3... Bb4 {[%clk 0:02:40.3]}
4. e3 {[%clk 0:02:56.8]} 4... O-O {[%clk 0:02:38.2]} 5. Ne2 {[%clk 0:02:56.9]}
5... c5 {[%clk 0:02:35.2]} 6. a3 {[%clk 0:02:56.5]} 6... Bxc3+ {[%clk
0:02:28.2]} 7. Nxc3 {[%clk 0:02:57.4]} 7... cxd4 {[%clk 0:02:26.8]} 8. exd4
{[%clk 0:02:58.3]} 8... d5 {[%clk 0:02:27.2]} 9. c5 {[%clk 0:02:57.6]} 9... Nc6
{[%clk 0:02:23.3]} 10. Be2 {[%clk 0:02:45]} 10... e5 {[%clk 0:02:21.8]} 11. dxe5
{[%clk 0:02:44.1]} 11... Nxe5 {[%clk 0:02:22.7]} 12. Be3 {[%clk 0:02:28.1]}
12... Re8 {[%clk 0:01:45.9]} 13. O-O {[%clk 0:02:26.5]} 13... Bg4 {[%clk
0:01:38.7]} 14. Bd4 {[%clk 0:01:54.7]} 14... Bxe2 {[%clk 0:00:55.7]} 15. Nxe2
{[%clk 0:01:55.6]} 15... Nfg4 {[%clk 0:00:56.6]} 16. h3 {[%clk 0:01:41.4]} 16...
Qh4 {[%clk 0:00:55.5]} 17. Ng3 {[%clk 0:01:31.6]} 17... Re6 {[%clk 0:00:22]} 18.
Nf5 {[%clk 0:01:21.6]} 18... Qg5 {[%clk 0:00:19.5]} 19. hxg4 {[%clk 0:00:53.5]}
19... Nxg4 {[%clk 0:00:20.4]} 20. Ne3 {[%clk 0:00:53.9]} 20... Rxe3 {[%clk
0:00:19.8]} 21. Bxe3 {[%clk 0:00:51.9]} 21... Qe5 {[%clk 0:00:05.9]} 22. Qxg4
{[%clk 0:00:49.4]} 1-0

[Event "*** Titled Tuesday Blitz"]
[Site "Chess.com"]
[Date "2020.11.24"]
[Round "8"]
[White "penguingm1"]
[Black "Kislov_Oleg"]
[Result "1-0"]
[WhiteElo "2949"]
[BlackElo "2385"]
[TimeControl "180+1"]
[EndTime "11:44:52 PST"]
[Termination "penguingm1 won by checkmate"]

1. e4 {[%clk 0:03:00]} 1... c5 {[%clk 0:02:59.3]} 2. Ke2 {[%clk 0:03:00.3]} 2...
Nc6 {[%clk 0:02:57.8]} 3. Qe1 {[%clk 0:02:51.5]} 3... g6 {[%clk 0:02:55]} 4. Nc3
{[%clk 0:02:50]} 4... Bg7 {[%clk 0:02:53.4]} 5. h4 {[%clk 0:02:50.3]} 5... h5
{[%clk 0:02:50]} 6. d3 {[%clk 0:02:49.7]} 6... Nd4+ {[%clk 0:02:47.9]} 7. Kd1
{[%clk 0:02:49.9]} 7... d6 {[%clk 0:02:47.1]} 8. Nge2 {[%clk 0:02:47.5]} 8... e6
{[%clk 0:02:21.7]} 9. Bg5 {[%clk 0:02:42.8]} 9... Ne7 {[%clk 0:02:17.5]} 10. f3
{[%clk 0:02:41.3]} 10... Rb8 {[%clk 0:02:11.1]} 11. Nxd4 {[%clk 0:02:36.9]}
11... Bxd4 {[%clk 0:02:04.2]} 12. g4 {[%clk 0:02:34.6]} 12... b5 {[%clk
0:01:59.1]} 13. Rb1 {[%clk 0:02:31.1]} 13... b4 {[%clk 0:01:52.5]} 14. Ne2
{[%clk 0:02:29.6]} 14... Bg7 {[%clk 0:01:50.4]} 15. Ng3 {[%clk 0:02:14.8]} 15...
Qa5 {[%clk 0:01:45.1]} 16. gxh5 {[%clk 0:02:07.7]} 16... Qxa2 {[%clk 0:01:42.2]}
17. Kc1 {[%clk 0:02:06.6]} 17... gxh5 {[%clk 0:01:23.7]} 18. Be2 {[%clk
0:02:06.3]} 18... a5 {[%clk 0:01:14.9]} 19. Bf4 {[%clk 0:02:01]} 19... a4 {[%clk
0:00:55.7]} 20. Bxd6 {[%clk 0:02:00.5]} 20... Bh6+ {[%clk 0:00:55.3]} 21. f4
{[%clk 0:01:57.3]} 21... Rb6 {[%clk 0:00:53.8]} 22. Be5 {[%clk 0:01:44.4]} 22...
f6 {[%clk 0:00:53]} 23. Nxh5 {[%clk 0:01:33.3]} 23... fxe5 {[%clk 0:00:50.1]}
24. Qg1 {[%clk 0:01:33.8]} 24... exf4 {[%clk 0:00:43.3]} 25. Bf3 {[%clk
0:01:33.4]} 25... b3 {[%clk 0:00:30.2]} 26. c3 {[%clk 0:01:28.6]} 26... a3
{[%clk 0:00:30]} 27. Qxc5 {[%clk 0:01:27.2]} 27... Rc6 {[%clk 0:00:24.8]} 28.
Qd4 {[%clk 0:01:22.5]} 28... axb2+ {[%clk 0:00:23.9]} 29. Kd2 {[%clk 0:01:22.5]}
29... Rf8 {[%clk 0:00:13.3]} 30. Nf6+ {[%clk 0:01:21.9]} 30... Kf7 {[%clk
0:00:12.5]} 31. Bh5+ {[%clk 0:01:22.3]} 31... Ng6 {[%clk 0:00:09.8]} 32. Rhg1
{[%clk 0:01:22.6]} 32... e5 {[%clk 0:00:07.1]} 33. Qd5+ {[%clk 0:01:23.1]} 33...
Kxf6 {[%clk 0:00:04.2]} 34. Rxg6+ {[%clk 0:01:23.5]} 34... Ke7 {[%clk
0:00:04.1]} 35. Qxc6 {[%clk 0:01:23.2]} 35... Qxb1 {[%clk 0:00:01.5]} 36. Qd6+
{[%clk 0:01:23.1]} 36... Ke8 {[%clk 0:00:01.3]} 37. Rg8# {[%clk 0:01:23]} 1-0

[Event "*** Titled Tuesday Blitz"]
[Site "Chess.com"]
[Date "2020.11.24"]
[Round "8"]
[White "nitpicker"]
[Black "eightbyeightchess"]
[Result "1-0"]
[WhiteElo "2309"]
[BlackElo "2405"]
[TimeControl "180+1"]
[EndTime "11:44:52 PST"]
[Termination "nitpicker won by resignation"]

1. d4 {[%clk 0:03:00.9]} 1... d5 {[%clk 0:02:45.4]} 2. c4 {[%clk 0:03:00.2]}
2... c6 {[%clk 0:02:43.9]} 3. Nf3 {[%clk 0:03:00]} 3... Nf6 {[%clk 0:02:43.5]}
4. Qb3 {[%clk 0:02:59.8]} 4... dxc4 {[%clk 0:02:42.9]} 5. Qxc4 {[%clk
0:02:59.5]} 5... Bf5 {[%clk 0:02:43.5]} 6. g3 {[%clk 0:02:51.8]} 6... Nbd7
{[%clk 0:02:41.8]} 7. Bg2 {[%clk 0:02:51.6]} 7... e6 {[%clk 0:02:41.4]} 8. Qb3
{[%clk 0:02:46.7]} 8... Nb6 {[%clk 0:02:39.3]} 9. Nc3 {[%clk 0:02:40.3]} 9...
Be7 {[%clk 0:02:38.9]} 10. O-O {[%clk 0:02:37.4]} 10... O-O {[%clk 0:02:33]} 11.
Rd1 {[%clk 0:02:31.3]} 11... Ne4 {[%clk 0:02:27.8]} 12. Ne5 {[%clk 0:02:21.9]}
12... Nxc3 {[%clk 0:02:22.3]} 13. bxc3 {[%clk 0:02:16.5]} 13... Bf6 {[%clk
0:02:22.5]} 14. Nd3 {[%clk 0:02:13.2]} 14... h6 {[%clk 0:02:16.4]} 15. Nc5
{[%clk 0:02:12.6]} 15... Qe7 {[%clk 0:02:15.2]} 16. a4 {[%clk 0:02:11.2]} 16...
Rfd8 {[%clk 0:01:52.6]} 17. a5 {[%clk 0:01:56.4]} 17... Nd7 {[%clk 0:01:50.7]}
18. Nxb7 {[%clk 0:01:43.2]} 18... Rab8 {[%clk 0:01:22.2]} 19. Bxc6 {[%clk
0:01:28.4]} 19... e5 {[%clk 0:01:02.8]} 20. Ba3 {[%clk 0:01:24.8]} 20... Qe8
{[%clk 0:00:55.7]} 21. d5 {[%clk 0:01:23.8]} 21... e4 {[%clk 0:00:49]} 22. Rac1
{[%clk 0:01:19.4]} 22... e3 {[%clk 0:00:45.3]} 23. f3 {[%clk 0:01:19.8]} 23...
h5 {[%clk 0:00:42.4]} 24. Qa4 {[%clk 0:01:16.8]} 24... h4 {[%clk 0:00:41.5]} 25.
Nd6 {[%clk 0:01:16.4]} 25... Qe5 {[%clk 0:00:37.9]} 26. f4 {[%clk 0:01:11.7]}
26... Bc2 {[%clk 0:00:22.3]} 27. fxe5 {[%clk 0:00:55.6]} 27... Bxa4 {[%clk
0:00:14.5]} 28. Bxa4 {[%clk 0:00:48.8]} 1-0

[Event "*** Titled Tuesday Blitz"]
[Site "Chess.com"]
[Date "2020.11.24"]
[Round "8"]
[White "LiamVrolijk"]
[Black "EvgenyRomanov"]
[Result "1-0"]
[WhiteElo "2799"]
[BlackElo "2593"]
[TimeControl "180+1"]
[EndTime "11:44:54 PST"]
[Termination "LiamVrolijk won on time"]

1. c4 {[%clk 0:02:59.7]} 1... e5 {[%clk 0:02:59.3]} 2. b3 {[%clk 0:02:59.6]}
2... Nc6 {[%clk 0:02:58.2]} 3. Bb2 {[%clk 0:02:59.8]} 3... g6 {[%clk 0:02:56]}
4. e3 {[%clk 0:02:55.6]} 4... Bg7 {[%clk 0:02:55.6]} 5. a3 {[%clk 0:02:56.1]}
5... Nge7 {[%clk 0:02:54.8]} 6. Qc2 {[%clk 0:02:56.1]} 6... O-O {[%clk
0:02:53.5]} 7. Nf3 {[%clk 0:02:55.2]} 7... d5 {[%clk 0:02:52.7]} 8. cxd5 {[%clk
0:02:55.2]} 8... Nxd5 {[%clk 0:02:52.3]} 9. d3 {[%clk 0:02:54.8]} 9... a5 {[%clk
0:02:39.7]} 10. Be2 {[%clk 0:02:54.4]} 10... Re8 {[%clk 0:02:38.1]} 11. O-O
{[%clk 0:02:52.9]} 11... Nb6 {[%clk 0:02:21.5]} 12. Nbd2 {[%clk 0:02:49.6]}
12... Bf5 {[%clk 0:02:21.3]} 13. Ne4 {[%clk 0:02:48.4]} 13... Nd7 {[%clk
0:02:15]} 14. Rac1 {[%clk 0:02:47.8]} 14... Rc8 {[%clk 0:02:13]} 15. Rfd1 {[%clk
0:02:47.8]} 15... Qe7 {[%clk 0:02:11.4]} 16. Qc4 {[%clk 0:02:43]} 16... Ncb8
{[%clk 0:01:54.2]} 17. b4 {[%clk 0:02:37.2]} 17... axb4 {[%clk 0:01:52.7]} 18.
axb4 {[%clk 0:02:38.1]} 18... c6 {[%clk 0:01:46.1]} 19. h3 {[%clk 0:02:34.7]}
19... Be6 {[%clk 0:01:40.8]} 20. Qc3 {[%clk 0:02:32]} 20... h6 {[%clk
0:01:39.1]} 21. Nc5 {[%clk 0:02:25.5]} 21... Nxc5 {[%clk 0:01:34.1]} 22. bxc5
{[%clk 0:02:24.8]} 22... Nd7 {[%clk 0:01:33.4]} 23. Nd2 {[%clk 0:02:23.5]} 23...
Ra8 {[%clk 0:01:28.7]} 24. Ne4 {[%clk 0:02:21.4]} 24... Ra7 {[%clk 0:01:24]} 25.
Ra1 {[%clk 0:02:02.5]} 25... Rea8 {[%clk 0:01:23.4]} 26. Rxa7 {[%clk 0:01:59.8]}
26... Rxa7 {[%clk 0:01:24.3]} 27. Nd6 {[%clk 0:02:00.7]} 27... Qd8 {[%clk
0:01:22.2]} 28. f4 {[%clk 0:01:52.2]} 28... f5 {[%clk 0:01:03.2]} 29. fxe5
{[%clk 0:01:46.8]} 29... Nxe5 {[%clk 0:00:58.3]} 30. d4 {[%clk 0:01:45.3]} 30...
Nf7 {[%clk 0:00:55.8]} 31. Bc4 {[%clk 0:01:45.5]} 31... Qd7 {[%clk 0:00:49]} 32.
d5 {[%clk 0:01:23]} 32... Bxc3 {[%clk 0:00:41.4]} 33. dxe6 {[%clk 0:01:22.5]}
1-0